[Event "Polugaevsky Memorial 2019"]
[Site "Samara"]
[Date "2019.07.11"]
[Round "2.5"]
[White "Gabrielian, Artur"]
[Black "Dubinin, Alexsandr"]
[Result "1-0"]
[ECO "B30"]
[WhiteElo "2458"]
[BlackElo "2151"]
[Annotator "ChessBase"]
[PlyCount "109"]
[EventDate "2019.07.10"]
[EventType "swiss"]
[EventCountry "RUS"]
[SourceTitle "playchess.com"]
[Source "ChessBase"]
[SourceQuality "1"]
[TimeControl "5400+30"]

1. e4 {[%emt 0:00:00]} c5 {[%emt 0:00:00]} 2. Nf3 {[%emt 0:00:09]} Nc6 {[%emt 0:00:00]} 3. Bb5 {[%emt 0:00:33]} e6 {[%emt 0:00:11]} 4. O-O {[%emt 0:01:11]} Nge7 {[%emt 0:01:23]} 5. Re1 {[%emt 0:01:12]} Nd4 {[%emt 0:01:18]} 6. Nxd4 {[%emt 0:00:37]} cxd4 {[%emt 0:00:11]} 7. d3 {[%emt 0:03:04]} a6 {[%emt 0:01:36]} 8. Ba4 {[%emt 0:01:39]} b5 {[%emt 0:00:49]} 9. Bb3 {[%emt 0:00:04]} Nc6 {[%emt 0:00:22]} 10. Qh5 {[%emt 0:05:23]} Bb7 {[%emt 0:09:01]} 11. Nd2 {[%emt 0:03:40]} Qf6 {[%emt 0:14:04]} 12. Nf3 {[%emt 0:07:36]} Qg6 {[%emt 0:06:32]} 13. Qh3 {[%emt 0:10:54]} Be7 {[%emt 0:03:15]} 14. Bd2 {[%emt 0:07:46]} O-O {[%emt 0:03:56]} 15. a4 {[%emt 0:01:16]} f5 {[%emt 0:08:26]} 16. Nh4 {[%emt 0:09:32]} Bxh4 {[%emt 0:05:05]} 17. Qxh4 {[%emt 0:00:06]} fxe4 {[%emt 0:04:36]} 18. dxe4 {[%emt 0:06:38]} Ne5 {[%emt 0:03:36]} 19. Qg3 {[%emt 0:00:57]} Qxg3 {[%emt 0:03:37]} 20. hxg3 {[%emt 0:02:33]} Rfc8 {[%emt 0:05:19]} 21. Rad1 {[%emt 0:08:31]} bxa4 {[%emt 0:11:05]} 22. Bxa4 {[%emt 0:00:11]} Bc6 {[%emt 0:00:10]} 23. Bb3 {[%emt 0:00:38]} Bb5 {[%emt 0:00:53]} 24. Bf4 {[%emt 0:11:48]} Nc6 {[%emt 0:01:16]} 25. Bd6 {[%emt 0:02:32]} a5 {[%emt 0:01:05]} 26. Bc5 {[%emt 0:02:17]} a4 {[%emt 0:02:38]} 27. Ba2 {[%emt 0:00:04]} Rab8 {[%emt 0:00:50]} 28. Rd2 {[%emt 0:04:43]} Ba6 {[%emt 0:04:42]} 29. Ba3 {[%emt 0:04:26]} Nb4 {[%emt 0:02:44]} 30. Bb1 {[%emt 0:00:05]} Rc4 {[%emt 0:01:54]} 31. Red1 {[%emt 0:01:43]} e5 {[%emt 0:01:57]} 32. f4 {[%emt 0:01:01]} d6 {[%emt 0:01:17]} 33. fxe5 {[%emt 0:01:26]} dxe5 {[%emt 0:00:01]} 34. c3 {[%emt 0:01:28]} dxc3 {[%emt 0:00:42]} 35. bxc3 {[%emt 0:00:04]} Rxc3 {[%emt 0:00:33]} 36. Bxb4 {[%emt 0:01:12]} Rxb4 {[%emt 0:00:07]} 37. Rd8+ {[%emt 0:00:02]} Kf7 {[%emt 0:00:06]} 38. R8d7+ {[%emt 0:00:45]} Ke8 {[%emt 0:00:53]} 39. Rd8+ {[%emt 0:00:16]} Ke7 {[%emt 0:01:34]} 40. R8d7+ {[%emt 0:00:00]} Ke8 {[%emt 0:00:00]} 41. Rd8+ {[%emt 0:00:00]} Ke7 {[%emt 0:00:00]} 42. R1d7+ {[%emt 0:00:00]} Kf6 {[%emt 0:00:00]} 43. Ba2 {[%emt 0:00:00]} Rc1+ {[%emt 0:00:00]} 44. Kh2 {[%emt 0:00:00]} Rb2 {[%emt 0:00:00]} 45. Rf8+ {[%emt 0:00:00]} Kg5 {[%emt 0:00:00]} 46. Rxg7+ {[%emt 0:00:00]} Kh6 {[%emt 0:00:00]} 47. Rg4 {[%emt 0:00:00]} Rcc2 {[%emt 0:01:33]} 48. Rf6+ {[%emt 0:01:03]} Kh5 {[%emt 0:00:08]} 49. Rh4+ {[%emt 0:00:59]} Kg5 {[%emt 0:00:05]} 50. Rf5+ {[%emt 0:00:04]} Kg6 {[%emt 0:00:06]} 51. Bf7+ {[%emt 0:00:47]} Kg7 {[%emt 0:00:05]} 52. Rg4+ {[%emt 0:00:05]} Kf8 {[%emt 0:00:06]} 53. Bb3+ {[%emt 0:00:24]} Ke7 {[%emt 0:00:11]} 54. Rxe5+ {[%emt 0:00:33]} Kd6 {[%emt 0:00:31]} 55. Re6+ {[%emt 0:00:00] Kd5} 1-0

[Event "Polugaevsky Memorial 2019"]
[Site "Samara"]
[Date "2019.07.11"]
[Round "2.6"]
[White "Gaifullin, Artur"]
[Black "Fedotov, Alexey"]
[Result "1-0"]
[ECO "A06"]
[WhiteElo "2453"]
[BlackElo "2141"]
[Annotator "ChessBase"]
[PlyCount "133"]
[EventDate "2019.07.10"]
[EventType "swiss"]
[EventCountry "RUS"]
[SourceTitle "playchess.com"]
[Source "ChessBase"]
[SourceQuality "1"]
[TimeControl "5400+30"]

1. Nf3 {[%emt 0:00:00]} d5 {[%emt 0:00:00]} 2. c4 {[%emt 0:00:00]} c6 {[%emt 0:00:00]} 3. e3 {[%emt 0:00:00]} Nf6 {[%emt 0:00:03]} 4. b3 {[%emt 0:00:00]} Bf5 {[%emt 0:03:03]} 5. Bb2 {[%emt 0:00:00]} e6 {[%emt 0:00:59]} 6. Be2 {[%emt 0:00:04]} h6 {[%emt 0:01:24]} 7. O-O {[%emt 0:00:34]} Nbd7 {[%emt 0:01:08]} 8. Nh4 {[%emt 0:02:34]} Bh7 {[%emt 0:00:42]} 9. f4 {[%emt 0:00:06]} Bd6 {[%emt 0:03:28]} 10. g3 {[%emt 0:06:28]} O-O {[%emt 0:08:11]} 11. Nc3 {[%emt 0:02:11]} Qe7 {[%emt 0:04:22]} 12. a3 {[%emt 0:02:05]} a5 {[%emt 0:08:11]} 13. d4 {[%emt 0:01:30]} Ne4 {[%emt 0:04:58]} 14. c5 {[%emt 0:00:59]} Bc7 {[%emt 0:01:07]} 15. b4 {[%emt 0:00:11]} g5 {[%emt 0:20:27]} 16. Nf3 {[%emt 0:00:27]} f6 {[%emt 0:01:36]} 17. Nxe4 {[%emt 0:04:09]} Bxe4 {[%emt 0:01:50]} 18. Nd2 {[%emt 0:02:15]} Bg6 {[%emt 0:05:50]} 19. b5 {[%emt 0:00:08]} Qh7 {[%emt 0:03:51]} 20. b6 {[%emt 0:01:09]} Bd8 {[%emt 0:00:47]} 21. Bg4 {[%emt 0:01:09]} Re8 {[%emt 0:05:25]} 22. Bh5 {[%emt 0:01:56]} Be7 {[%emt 0:03:25]} 23. Bxg6 {[%emt 0:01:11]} Qxg6 {[%emt 0:01:28]} 24. a4 {[%emt 0:01:11]} h5 {[%emt 0:04:38]} 25. Qb1 {[%emt 0:02:09]} f5 {[%emt 0:00:39]} 26. Rf2 {[%emt 0:03:14]} Kf7 {[%emt 0:04:10]} 27. Bc3 {[%emt 0:02:58]} Rh8 {[%emt 0:01:47]} 28. Rg2 {[%emt 0:00:53]} g4 {[%emt 0:02:44]} 29. Nb3 {[%emt 0:00:44]} Nf6 {[%emt 0:02:01]} 30. Nxa5 {[%emt 0:00:32]} Ne4 {[%emt 0:00:32]} 31. Be1 {[%emt 0:00:28]} Rxa5 {[%emt 0:02:55]} 32. Bxa5 {[%emt 0:00:08]} Ra8 {[%emt 0:03:04]} 33. Be1 {[%emt 0:00:25]} Bf6 {[%emt 0:00:50]} 34. a5 {[%emt 0:01:21]} Ra6 {[%emt 0:00:06]} 35. Ra3 {[%emt 0:00:59]} Bg7 {[%emt 0:00:12]} 36. Qd3 {[%emt 0:00:13]} Bf6 {[%emt 0:01:25]} 37. Rb3 {[%emt 0:00:27]} Qg8 {[%emt 0:00:27]} 38. Rgb2 {[%emt 0:00:27]} Qa8 {[%emt 0:00:12]} 39. Qe2 {[%emt 0:00:28]} Bg7 {[%emt 0:00:15]} 40. h3 {[%emt 0:00:00]} Kg6 {[%emt 0:00:00]} 41. Qf1 {[%emt 0:00:00]} Kf7 {[%emt 0:00:00]} 42. Rh2 {[%emt 0:00:00]} Nf6 {[%emt 0:00:00]} 43. Qd3 {[%emt 0:00:00]} Kg6 {[%emt 0:00:00]} 44. hxg4 {[%emt 0:00:00]} hxg4 {[%emt 0:00:00]} 45. Kf1 {[%emt 0:00:00]} Ne4 {[%emt 0:00:00]} 46. Ke2 {[%emt 0:00:00]} Nf6 {[%emt 0:00:00]} 47. Kd1 {[%emt 0:00:00]} Kf7 {[%emt 0:00:00]} 48. Kc2 {[%emt 0:00:00]} Kg6 {[%emt 0:00:00]} 49. Rb1 {[%emt 0:00:00]} Kf7 {[%emt 0:00:00]} 50. Kb3 {[%emt 0:00:00]} Kg6 {[%emt 0:00:00]} 51. Ka4 {[%emt 0:00:00]} Ne4 {[%emt 0:00:00]} 52. Qf1 {[%emt 0:00:00]} Kf7 {[%emt 0:02:09]} 53. Rg2 {[%emt 0:00:00]} Nf6 {[%emt 0:00:10]} 54. Bb4 {[%emt 0:00:00]} Ne4 {[%emt 0:00:40]} 55. Qh1 {[%emt 0:00:00]} Nf6 {[%emt 0:00:32]} 56. Rh2 {[%emt 0:00:00]} Kg8 {[%emt 0:03:11]} 57. Qg2 {[%emt 0:00:00]} Kf7 {[%emt 0:00:22]} 58. Rbh1 {[%emt 0:00:00]} Kg6 {[%emt 0:01:27]} 59. Rh4 {[%emt 0:00:00]} Qg8 {[%emt 0:00:49]} 60. R1h2 {[%emt 0:00:00]} Qf8 {[%emt 0:00:33]} 61. Qh1 {[%emt 0:00:00]} Qg8 {[%emt 0:01:31]} 62. Rh8 {[%emt 0:00:00]} Bxh8 {[%emt 0:00:26]} 63. Rxh8 {[%emt 0:00:00]} Qg7 {[%emt 0:00:10]} 64. Qh4 {[%emt 0:00:00]} Nh7 {[%emt 0:01:15]} 65. Rc8 {[%emt 0:00:00]} Nf6 {[%emt 0:00:28]} 66. Qg5+ {[%emt 0:00:00]} Kh7 {[%emt 0:00:07]} 67. Rc7 {[%emt 0:00:00]} 1-0

[Event "Polugaevsky Memorial 2019"]
[Site "Samara"]
[Date "2019.07.11"]
[Round "2.7"]
[White "Suvorov, Aleksandr"]
[Black "Kuderinov, Kirill"]
[Result "1/2-1/2"]
[ECO "B31"]
[WhiteElo "2154"]
[BlackElo "2439"]
[Annotator "NA"]
[PlyCount "82"]
[EventDate "2019.07.10"]
[EventType "swiss"]
[EventCountry "RUS"]
[SourceTitle "playchess.com"]
[Source "ChessBase"]
[SourceQuality "1"]
[TimeControl "5400+30"]

1. e4 {[%emt 0:00:00]} c5 {[%emt 0:05:12]} 2. Nf3 {[%emt 0:00:00]} Nc6 {[%emt 0:00:57]} 3. Bb5 {[%emt 0:00:52]} g6 {[%emt 0:01:49]} 4. Bxc6 {[%emt 0:00:16]} bxc6 {[%emt 0:01:29]} 5. O-O {[%emt 0:00:09]} Bg7 {[%emt 0:00:10]} 6. Re1 {[%emt 0:01:03]} Nh6 {[%emt 0:04:00]} 7. c3 {[%emt 0:04:36]} O-O {[%emt 0:01:34]} 8. d4 {[%emt 0:03:22]} cxd4 {[%emt 0:00:23]} 9. cxd4 {[%emt 0:00:15]} d5 {[%emt 0:02:50]} 10. e5 {[%emt 0:00:56]} Bg4 {[%emt 0:07:12]} 11. Nbd2 {[%emt 0:05:21]} f6 {[%emt 0:06:39]} 12. h3 {[%emt 0:03:04]} Bxf3 {[%emt 0:07:22]} 13. Nxf3 {[%emt 0:00:07]} Nf7 {[%emt 0:00:16]} 14. exf6 {[%emt 0:14:40]} exf6 {[%emt 0:00:24]} 15. Bf4 {[%emt 0:00:52]} Qd7 {[%emt 0:00:46]} 16. Qa4 {[%emt 0:02:12]} g5 {[%emt 0:04:53]} 17. Bg3 {[%emt 0:03:23]} h5 {[%emt 0:01:18]} 18. Rac1 {[%emt 0:03:22]} Rac8 {[%emt 0:00:10]} 19. Rc3 {[%emt 0:03:23]} Nh6 {[%emt 0:07:30]} 20. h4 {[%emt 0:12:49]} g4 {[%emt 0:03:08]} 21. Nd2 {[%emt 0:02:38]} Nf5 {[%emt 0:00:07]} 22. Nb3 {[%emt 0:00:25]} Rfe8 {[%emt 0:00:13]} 23. Rxe8+ {[%emt 0:02:22]} Qxe8 {[%emt 0:04:01]} 24. Qxa7 {[%emt 0:00:26]} Nxg3 {[%emt 0:15:04]} 25. fxg3 {[%emt 0:00:39]} f5 {[%emt 0:00:04]} 26. Qa6 {[%emt 0:09:04]} f4 {[%emt 0:01:26]} 27. gxf4 {[%emt 0:03:08]} c5 {[%emt 0:01:27]} 28. Rxc5 {[%emt 0:06:32]} Qe3+ {[%emt 0:01:01]} 29. Kh1 {[%emt 0:00:40]} Qe1+ {[%emt 0:04:43]} 30. Kh2 {[%emt 0:00:16]} Qxh4+ {[%emt 0:00:15]} 31. Kg1 {[%emt 0:00:06]} Qe1+ {[%emt 0:05:58]} 32. Kh2 {[%emt 0:00:05]} Re8 {[%emt 0:10:40]} 33. Rc8 {[%emt 0:00:23]} Qh4+ {[%emt 0:00:11]} 34. Kg1 {[%emt 0:00:06]} Qe1+ {[%emt 0:00:08]} 35. Kh2 {[%emt 0:00:06]} g3+ {[%emt 0:00:46]} 36. Kh3 {[%emt 0:00:08]} Qh1+ {[%emt 0:00:05]} 37. Kxg3 {[%emt 0:00:04]} h4+ {[%emt 0:00:09]} 38. Kg4 {[%emt 0:01:06]} Qxg2+ {[%emt 0:00:06]} 39. Kxh4 {[%emt 0:00:13]} Qh2+ {[%emt 0:00:39]} 40. Kg4 {[%emt 0:00:00]} Qg2+ {[%emt 0:00:00]} 41. Kh4 {[%emt 0:00:00]} Qh2+ {[%emt 0:00:00]} 1/2-1/2

[Event "Polugaevsky Memorial 2019"]
[Site "Samara"]
[Date "2019.07.11"]
[Round "2.8"]
[White "Nosacheva, Mariya"]
[Black "Kopylov, Alexander A."]
[Result "0-1"]
[ECO "B47"]
[WhiteElo "2150"]
[BlackElo "2410"]
[Annotator "NA"]
[PlyCount "108"]
[EventDate "2019.07.10"]
[EventType "swiss"]
[EventCountry "RUS"]
[SourceTitle "playchess.com"]
[Source "ChessBase"]
[SourceQuality "1"]
[TimeControl "5400+30"]

1. e4 {[%emt 0:00:00]} c5 {[%emt 0:00:00]} 2. Nf3 {[%emt 0:00:00]} Nc6 {[%emt 0:00:00]} 3. d4 {[%emt 0:00:00]} cxd4 {[%emt 0:00:00]} 4. Nxd4 {[%emt 0:00:03]} e6 {[%emt 0:00:00]} 5. Nc3 {[%emt 0:00:43]} Qc7 {[%emt 0:03:21]} 6. g3 {[%emt 0:00:14]} a6 {[%emt 0:29:48]} 7. Bg2 {[%emt 0:01:24]} Nf6 {[%emt 0:01:39]} 8. O-O {[%emt 0:01:44]} Nxd4 {[%emt 0:06:22]} 9. Qxd4 {[%emt 0:00:48]} Bc5 {[%emt 0:00:04]} 10. Qd3 {[%emt 0:03:51]} d6 {[%emt 0:08:27]} 11. Bf4 {[%emt 0:07:36]} h6 {[%emt 0:01:53]} 12. Rad1 {[%emt 0:03:48]} e5 {[%emt 0:04:20]} 13. Be3 {[%emt 0:03:55]} Bg4 {[%emt 0:10:05]} 14. f3 {[%emt 0:16:47]} Be6 {[%emt 0:01:31]} 15. Rf2 {[%emt 0:01:14]} Rd8 {[%emt 0:06:55]} 16. Nd5 {[%emt 0:03:02]} Bxd5 {[%emt 0:04:32]} 17. exd5 {[%emt 0:00:12]} Bxe3 {[%emt 0:01:15]} 18. Qxe3 {[%emt 0:00:09]} O-O {[%emt 0:00:04]} 19. Qd3 {[%emt 0:17:13]} b5 {[%emt 0:04:10]} 20. Bh3 {[%emt 0:03:48]} Rde8 {[%emt 0:02:23]} 21. Re2 {[%emt 0:04:07]} g6 {[%emt 0:00:56]} 22. Kh1 {[%emt 0:03:05]} Kg7 {[%emt 0:01:31]} 23. a4 {[%emt 0:00:51]} Qc5 {[%emt 0:00:48]} 24. axb5 {[%emt 0:02:55]} axb5 {[%emt 0:00:03]} 25. Qe3 {[%emt 0:03:57]} Qc7 {[%emt 0:00:04]} 26. Qb3 {[%emt 0:00:37]} Rb8 {[%emt 0:01:06]} 27. Re3 {[%emt 0:03:43]} b4 {[%emt 0:00:46]} 28. Re2 {[%emt 0:03:56]} h5 {[%emt 0:00:21]} 29. Qd3 {[%emt 0:01:39]} Qc5 {[%emt 0:00:48]} 30. Qe3 {[%emt 0:01:53]} Rb5 {[%emt 0:01:25]} 31. Bg2 {[%emt 0:04:37]} Rc8 {[%emt 0:01:50]} 32. Qb3 {[%emt 0:01:16]} h4 {[%emt 0:00:12]} 33. f4 {[%emt 0:00:27]} e4 {[%emt 0:03:23]} 34. gxh4 {[%emt 0:02:51]} Rh8 {[%emt 0:02:36]} 35. Qg3 {[%emt 0:01:30]} Rh5 {[%emt 0:00:12]} 36. c3 {[%emt 0:01:40]} Qc4 {[%emt 0:01:37]} 37. Rde1 {[%emt 0:00:23]} bxc3 {[%emt 0:00:11]} 38. Qxc3 {[%emt 0:01:34]} Qxc3 {[%emt 0:00:29]} 39. bxc3 {[%emt 0:00:05]} Rbxd5 {[%emt 0:00:28]} 40. Bxe4 {[%emt 0:00:00]} Rc5 {[%emt 0:00:00]} 41. Rd1 {[%emt 0:00:00]} Rxh4 {[%emt 0:00:00]} 42. Rxd6 {[%emt 0:00:00]} Rxc3 {[%emt 0:00:00]} 43. Bc2 {[%emt 0:00:00]} Rxf4 {[%emt 0:00:00]} 44. Kg2 {[%emt 0:00:00]} Nh5 {[%emt 0:00:00]} 45. Be4 {[%emt 0:00:00]} Rg4+ {[%emt 0:00:00]} 46. Kf1 {[%emt 0:00:00]} Rc1+ {[%emt 0:00:44]} 47. Kf2 {[%emt 0:00:00]} Nf4 {[%emt 0:00:11]} 48. Bf3 {[%emt 0:00:00]} Rgg1 {[%emt 0:01:53]} 49. Red2 {[%emt 0:00:00]} Rce1 {[%emt 0:01:50]} 50. Bc6 {[%emt 0:00:00]} Rgf1+ {[%emt 0:00:38]} 51. Kg3 {[%emt 0:00:00]} Re3+ {[%emt 0:00:11]} 52. Kg4 {[%emt 0:00:00]} f5+ {[%emt 0:00:15]} 53. Kg5 {[%emt 0:00:00]} Nh3+ {[%emt 0:00:10]} 54. Kh4 {[%emt 0:00:00]} Rf4# {[%emt 0:00:39]} 0-1

[Event "Polugaevsky Memorial 2019"]
[Site "Samara"]
[Date "2019.07.11"]
[Round "2.9"]
[White "Shapiro, David"]
[Black "Zhukov, Ivan"]
[Result "1-0"]
[ECO "A45"]
[WhiteElo "2410"]
[BlackElo "2136"]
[Annotator "NA"]
[PlyCount "47"]
[EventDate "2019.07.10"]
[EventType "swiss"]
[EventCountry "RUS"]
[SourceTitle "playchess.com"]
[Source "ChessBase"]
[SourceQuality "1"]
[TimeControl "5400+30"]

1. d4 {[%emt 0:00:00]} Nf6 {[%emt 0:00:00]} 2. Bf4 {[%emt 0:00:00]} g6 {[%emt 0:00:26]} 3. Nc3 {[%emt 0:00:05]} Bg7 {[%emt 0:02:27]} 4. e4 {[%emt 0:00:12]} d6 {[%emt 0:00:12]} 5. Qd2 {[%emt 0:00:41]} O-O {[%emt 0:00:46]} 6. O-O-O {[%emt 0:00:29]} c6 {[%emt 0:01:25]} 7. f3 {[%emt 0:01:15]} Nbd7 {[%emt 0:04:00]} 8. Bh6 {[%emt 0:01:26]} b5 {[%emt 0:01:48]} 9. h4 {[%emt 0:01:24]} Qa5 {[%emt 0:02:16]} 10. h5 {[%emt 0:13:21]} b4 {[%emt 0:05:29]} 11. Nb1 {[%emt 0:01:20]} Nxh5 {[%emt 0:09:47]} 12. e5 {[%emt 0:10:20]} Bxh6 {[%emt 0:08:57]} 13. Qxh6 {[%emt 0:00:03]} dxe5 {[%emt 0:00:45]} 14. g4 {[%emt 0:06:40]} Nhf6 {[%emt 0:01:09]} 15. g5 {[%emt 0:02:02]} Nh5 {[%emt 0:00:31]} 16. Bd3 {[%emt 0:00:36]} Rd8 {[%emt 0:14:03]} 17. Rxh5 {[%emt 0:02:00]} Nf8 {[%emt 0:00:01]} 18. Rh4 {[%emt 0:01:24]} exd4 {[%emt 0:03:00]} 19. Ne2 {[%emt 0:01:51]} c5 {[%emt 0:04:50]} 20. Ng3 {[%emt 0:06:41]} Rd6 {[%emt 0:06:21]} 21. Rdh1 {[%emt 0:08:57]} Qxa2 {[%emt 0:06:41]} 22. b3 {[%emt 0:04:59]} c4 {[%emt 0:10:01]} 23. Qxh7+ {[%emt 0:04:40]} Nxh7 {[%emt 0:00:07]} 24. Rxh7 {[%emt 0:00:02]} 1-0

[Event "Polugaevsky Memorial 2019"]
[Site "Samara"]
[Date "2019.07.11"]
[Round "2.10"]
[White "Tunik, Gennady"]
[Black "Mochalin, Faddey"]
[Result "1-0"]
[ECO "D48"]
[WhiteElo "2371"]
[BlackElo "2115"]
[Annotator "NA"]
[PlyCount "95"]
[EventDate "2019.07.10"]
[EventType "swiss"]
[EventCountry "RUS"]
[SourceTitle "playchess.com"]
[Source "ChessBase"]
[SourceQuality "1"]
[TimeControl "5400+30"]

1. d4 d5 {[%emt 0:00:31]} 2. c4 {[%emt 0:00:00]} e6 {[%emt 0:00:21]} 3. Nf3 {[%emt 0:00:27]} Nf6 {[%emt 0:00:20]} 4. Nc3 {[%emt 0:00:24]} c6 {[%emt 0:00:21]} 5. e3 {[%emt 0:00:42]} Nbd7 {[%emt 0:00:18]} 6. Bd3 {[%emt 0:00:19]} dxc4 {[%emt 0:00:27]} 7. Bxc4 {[%emt 0:00:06]} b5 {[%emt 0:00:15]} 8. Bd3 {[%emt 0:00:12]} a6 {[%emt 0:00:18]} 9. a4 {[%emt 0:00:36]} b4 {[%emt 0:01:02]} 10. Ne4 {[%emt 0:00:12]} c5 {[%emt 0:01:18]} 11. Nxf6+ {[%emt 0:00:58]} Nxf6 {[%emt 0:00:28]} 12. dxc5 {[%emt 0:00:38]} Bxc5 {[%emt 0:00:47]} 13. Qe2 {[%emt 0:01:03]} O-O {[%emt 0:04:13]} 14. e4 {[%emt 0:01:03]} Be7 {[%emt 0:20:27]} 15. O-O {[%emt 0:07:45]} Bb7 {[%emt 0:04:50]} 16. Rd1 {[%emt 0:02:37]} Qb8 {[%emt 0:14:18]} 17. b3 {[%emt 0:06:07]} Rd8 {[%emt 0:06:16]} 18. Bb2 {[%emt 0:09:10]} Nd7 {[%emt 0:05:59]} 19. Rac1 {[%emt 0:05:25]} Nc5 {[%emt 0:04:15]} 20. Be5 {[%emt 0:05:19]} Qa7 {[%emt 0:00:56]} 21. Bc2 {[%emt 0:00:20]} Rac8 {[%emt 0:03:53]} 22. Rxd8+ {[%emt 0:02:31]} Rxd8 {[%emt 0:00:30]} 23. Qe3 {[%emt 0:04:37]} Qa8 {[%emt 0:02:21]} 24. Re1 {[%emt 0:00:52]} f6 {[%emt 0:09:52]} 25. Bb2 {[%emt 0:07:31]} Qc8 {[%emt 0:08:40]} 26. Rc1 {[%emt 0:05:33]} e5 {[%emt 0:01:41]} 27. h3 {[%emt 0:01:09]} Qa8 {[%emt 0:01:55]} 28. Nd2 {[%emt 0:00:58]} a5 {[%emt 0:05:22]} 29. Nc4 {[%emt 0:14:24]} Nxe4 {[%emt 0:01:21]} 30. Qb6 {[%emt 0:02:20]} Bc5 {[%emt 0:01:13]} 31. Qe6+ {[%emt 0:00:05]} Kh8 {[%emt 0:00:19]} 32. Bxe4 {[%emt 0:00:25]} Bxe4 {[%emt 0:00:08]} 33. Nxe5 {[%emt 0:01:58]} fxe5 {[%emt 0:01:02]} 34. Rxc5 {[%emt 0:00:14]} Bxg2 {[%emt 0:00:29]} 35. Kh2 {[%emt 0:02:58]} Bf1 {[%emt 0:00:33]} 36. Qg4 {[%emt 0:00:18]} Qa7 {[%emt 0:00:30]} 37. Bxe5 {[%emt 0:00:21]} Rg8 {[%emt 0:00:29]} 38. Bd4 {[%emt 0:00:33]} Qf7 {[%emt 0:00:30]} 39. Qg3 {[%emt 0:01:06]} Qd7 {[%emt 0:00:30]} 40. Be5 {[%emt 0:00:00]} Qd8 {[%emt 0:00:00]} 41. Rc7 {[%emt 0:00:00]} Qf8 {[%emt 0:00:00]} 42. f4 {[%emt 0:00:00]} Ba6 {[%emt 0:00:00]} 43. h4 {[%emt 0:00:00]} Be2 {[%emt 0:00:00]} 44. Qg5 {[%emt 0:00:00]} Bd1 {[%emt 0:00:00]} 45. h5 {[%emt 0:00:00]} Bxb3 {[%emt 0:00:00]} 46. h6 {[%emt 0:00:00]} Bf7 {[%emt 0:00:00]} 47. hxg7+ {[%emt 0:00:00]} Rxg7 {[%emt 0:00:00]} 48. Rc8 {[%emt 0:00:00]} 1-0

[Event "Polugaevsky Memorial 2019"]
[Site "Samara"]
[Date "2019.07.12"]
[Round "3.1"]
[White "Goganov, Aleksey"]
[Black "Mamatov, Melis"]
[Result "1-0"]
[ECO "D11"]
[WhiteElo "2561"]
[BlackElo "2269"]
[Annotator "ChessBase"]
[PlyCount "43"]
[EventDate "2019.07.10"]
[EventType "swiss"]
[EventCountry "RUS"]
[SourceTitle "playchess.com"]
[Source "ChessBase"]
[SourceQuality "1"]
[TimeControl "5400+30"]

1. d4 {[%emt 0:00:00]} d5 {[%emt 0:00:00]} 2. c4 {[%emt 0:00:00]} c6 {[%emt 0:00:00]} 3. Nf3 {[%emt 0:00:00]} Nf6 {[%emt 0:00:00]} 4. e3 {[%emt 0:00:00]} e6 {[%emt 0:04:17]} 5. Bd3 {[%emt 0:00:01]} Nbd7 {[%emt 0:00:15]} 6. b3 {[%emt 0:00:06]} Bd6 {[%emt 0:04:04]} 7. Bb2 {[%emt 0:00:09]} b6 {[%emt 0:00:45]} 8. O-O {[%emt 0:00:09]} Bb7 {[%emt 0:00:11]} 9. Nc3 {[%emt 0:00:09]} O-O {[%emt 0:00:56]} 10. Qc2 {[%emt 0:00:47]} Rc8 {[%emt 0:01:46]} 11. Rad1 {[%emt 0:00:43]} Re8 {[%emt 0:13:09]} 12. e4 {[%emt 0:04:26]} dxe4 {[%emt 0:03:03]} 13. Nxe4 {[%emt 0:00:28]} Nxe4 {[%emt 0:00:49]} 14. Bxe4 {[%emt 0:00:07]} f5 {[%emt 0:09:48]} 15. Bd3 {[%emt 0:00:08]} Qc7 {[%emt 0:00:55]} 16. Rfe1 {[%emt 0:05:59]} Re7 {[%emt 0:02:43]} 17. c5 {[%emt 0:01:40]} bxc5 {[%emt 0:09:34]} 18. Bc4 {[%emt 0:00:52]} Kh8 {[%emt 0:12:42]} 19. Rxe6 {[%emt 0:02:28]} Nf8 {[%emt 0:04:53]} 20. Rxe7 {[%emt 0:00:53]} Qxe7 {[%emt 0:03:28]} 21. dxc5 {[%emt 0:00:34]} Bxc5 {[%emt 0:05:18]} 22. Ne5 {[%emt 0:00:24]} 1-0